fUSD/lending_fUSD_20251223
["ID","MTS","AMOUNT","RATE_DAILY","PERIOD"]
[399593522,1766525709772,-300.0,0.000385,2]
[399593523,1766525709783,-300.0,0.000385,2]
[399593524,1766525709793,-367.4866174,0.000385,2]
[399593525,1766525709802,-316.5063523,0.000385,2]
[399593526,1766525709814,-300.0,0.000385,2]
[399593527,1766525709824,-435.79056868,0.000385,2]
[399593528,1766525709834,-526.96319888,0.000385,2]
[399593529,1766525709845,-363.46147314,0.000385,2]
[399593530,1766525709856,-422.74490988,0.000385,2]
[399593531,1766525709866,-593.04717058,0.000385,2]
[399593532,1766525709876,-362.73013856,0.000385,2]
[399593533,1766525709886,-302.51760922,0.000385,2]
[399593534,1766525709893,-301.4779276,0.000385,2]
[399593535,1766525709900,-301.38168765,0.000385,2]
[399593536,1766525709907,-301.4734807,0.000385,2]
[399593537,1766525709916,-301.73866504,0.000385,2]
[399593538,1766525709924,-306.22500912,0.000385,2]
[399593539,1766525709932,-315.37918524,0.000385,2]
[399593540,1766525709939,-574.99851683,0.000385,2]
[399593541,1766525709947,-306.42903888,0.000385,2]
[399593542,1766525709954,-301.43111182,0.000385,2]
[399593543,1766525709963,-307.23957574,0.000385,2]
[399593544,1766525709973,-303.47415034,0.000385,2]
[399593545,1766525709982,-303.24607502,0.000385,2]
[399593546,1766525709992,-372.0969185,0.000385,2]
[399593547,1766525710002,-301.4807549,0.000385,2]
[399593548,1766525710012,-496.7,0.000385,30]
[399593549,1766525710023,-168.38852427,0.00038511,120]
[399593550,1766525710033,-150.0,0.00038569,7]
[399593551,1766525710044,-150.0,0.00038572,7]
[399593552,1766525710053,-150.0,0.0003858,7]
[399593553,1766525710064,-150.0,0.00038586,7]
[399593554,1766525710074,-245.92,0.000386,14]
[399593555,1766525710083,-150.0,0.0003861,30]
[399593556,1766525710094,-150.0,0.0003861,30]
[399593557,1766525710104,-733.173,0.00038617,52]
[399593558,1766525710115,-150.0,0.00038647,7]
[399593559,1766525710126,-150.0,0.00038655,7]
[399593560,1766525710136,-150.0,0.00038661,7]
[399593561,1766525710146,-150.0,0.00038661,7]
[399593562,1766525710156,-150.0,0.00038686,7]
[399593563,1766525710166,-150.0,0.00038708,7]
[399593564,1766525710177,-150.0,0.00038737,7]
[399593565,1766525710187,-150.0,0.00038743,7]
[399593566,1766525710197,-150.0,0.00038786,7]
[399593567,1766525710206,-151.0,0.00038795,60]
[399593568,1766525710216,-151.0,0.00038795,120]
[399593569,1766525710226,-151.0,0.00038795,120]
[399593570,1766525710235,-151.0,0.00038795,120]
[399593571,1766525710246,-151.0,0.00038795,120]
[399593572,1766525710255,-151.0,0.00038795,120]
[399593573,1766525710265,-151.0,0.00038795,120]
[399593574,1766525710275,-151.0,0.00038795,120]
[399593575,1766525710284,-151.0,0.00038795,120]
[399593576,1766525710295,-190.916453,0.00038795,120]
[399593577,1766525710305,-151.0,0.00038795,120]
[399593578,1766525710315,-151.0,0.00038795,120]
[399593579,1766525710325,-151.0,0.00038795,120]
[399593580,1766525710335,-176.563513,0.00038795,120]
[399593581,1766525710345,-151.0,0.00038795,120]
[399593582,1766525710355,-151.0,0.00038795,120]
[399593583,1766525710365,-195.306305,0.00038795,120]
[399593584,1766525710375,-195.306305,0.00038795,120]
[399593585,1766525710384,-151.0,0.00038795,120]
[399593586,1766525710393,-151.0,0.00038795,120]
[399593587,1766525710403,-151.0,0.00038795,120]
[399593588,1766525710413,-158.442846,0.00038795,120]
[399593589,1766525710423,-158.442846,0.00038795,120]
[399593590,1766525710433,-158.442846,0.00038795,120]
[399593591,1766525710443,-158.442846,0.00038795,120]
[399593592,1766525710452,-151.0,0.00038795,120]
[399593593,1766525710462,-11690.25912034,0.000388,2]
[399593594,1766525710472,-3959.58,0.000388,30]
[399593595,1766525710482,-151.0,0.000388,120]
[399593596,1766525710492,-151.0,0.000388,120]
[399593597,1766525710502,-151.0,0.000388,120]
[399593598,1766525710512,-230.512448,0.000388,120]
[399593599,1766525710522,-151.0,0.000388,120]
[399593600,1766525710532,-151.0,0.000388,120]
[399593601,1766525710542,-230.512448,0.000388,120]
[399593602,1766525710552,-151.0,0.000388,120]
[399593603,1766525710562,-230.512448,0.000388,120]
[399593604,1766525710573,-151.0,0.000388,120]
[399593605,1766525710582,-230.512448,0.000388,120]
[399593606,1766525710592,-151.0,0.000388,120]
[399593607,1766525710602,-189.692475,0.000388,120]
[399593608,1766525710611,-151.0,0.000388,120]
[399593609,1766525710621,-151.0,0.000388,120]
[399593610,1766525710631,-151.0,0.000388,120]
[399593611,1766525710642,-207.398135,0.000388,120]
[399593612,1766525710653,-207.398135,0.000388,120]
[399593613,1766525710662,-151.0,0.000388,120]
[399593614,1766525710672,-207.398135,0.000388,120]
[399593615,1766525710682,-151.0,0.000388,120]
[399593616,1766525710692,-207.398135,0.000388,120]
[399593617,1766525710702,-151.0,0.000388,120]
[399593618,1766525710712,-151.0,0.000388,120]
[399593619,1766525710722,-151.0,0.000388,120]
[399593620,1766525710731,-163.422143,0.000388,120]
[399593621,1766525710741,-151.0,0.000388,120]
[399593622,1766525710750,-163.422143,0.000388,120]
[399593623,1766525710760,-151.0,0.000388,120]
[399593624,1766525710771,-163.422143,0.000388,120]
[399593625,1766525710781,-151.0,0.000388,120]
[399593626,1766525710791,-151.0,0.000388,120]
[399593627,1766525710801,-163.422143,0.000388,120]
[399593628,1766525710813,-151.0,0.000388,120]
[399593629,1766525710823,-570.09109,0.000388,120]
[399593630,1766525710833,-253.669858,0.000388,120]
[399593631,1766525710843,-570.09109,0.000388,120]
[399593632,1766525710853,-570.09109,0.000388,120]
[399593633,1766525710863,-570.09109,0.000388,120]
[399593634,1766525710872,-2000.0,0.00038805,3]
[399593635,1766525710882,-2000.0,0.00038805,3]
[399593636,1766525710892,-2000.0,0.00038805,3]
[399593637,1766525710903,-150.0,0.00038817,7]
[399593638,1766525710912,-150.0,0.0003882,7]
[399593639,1766525710922,-150.0,0.00038824,7]
[399593640,1766525710933,-150.0,0.00038824,7]
[399593641,1766525710943,-150.0,0.00038847,7]
[399593642,1766525710953,-150.0,0.00038886,7]
[399593643,1766525710962,-416.18918672,0.000389,120]
[399593644,1766525710971,-263.88,0.000389,120]
[399593645,1766525710981,-151.0,0.000389,120]
[399593646,1766525710991,-153.291863,0.000389,120]
[399593647,1766525711001,-151.0,0.000389,120]
[399593648,1766525711011,-151.0,0.000389,120]
[399593649,1766525711020,-294.570379,0.000389,120]
[399593650,1766525711030,-151.0,0.000389,60]
[399593651,1766525711040,-151.0,0.000389,120]
[399593652,1766525711049,-151.0,0.000389,60]
[399593653,1766525711059,-151.0,0.000389,60]
[399593654,1766525711069,-281.181269,0.000389,60]
[399593655,1766525711474,-151.0,0.000389,120]
[399593656,1766525711485,-151.0,0.000389,120]
[399593657,1766525711496,-151.0,0.000389,120]
[399593658,1766525711506,-222.519512,0.000389,120]
[399593659,1766525711516,-151.0,0.000389,120]
[399593660,1766525711526,-151.0,0.000389,120]
[399593661,1766525711535,-151.0,0.000389,120]
[399593662,1766525711544,-151.0,0.000389,120]
[399593663,1766525711555,-151.0,0.000389,120]
[399593664,1766525711565,-151.0,0.000389,120]
[399593665,1766525711574,-151.0,0.000389,120]
[399593666,1766525711584,-151.0,0.000389,120]
[399593667,1766525711594,-151.0,0.000389,120]
[399593668,1766525711604,-151.0,0.000389,120]
[399593669,1766525711615,-151.0,0.000389,120]
[399593670,1766525711624,-151.0,0.000389,120]
[399593671,1766525711634,-151.0,0.000389,120]
[399593672,1766525711643,-151.0,0.000389,120]
[399593673,1766525711654,-151.0,0.000389,120]
[399593674,1766525711664,-151.0,0.000389,120]
[399593675,1766525711674,-154.374443,0.000389,120]
[399593676,1766525711684,-151.0,0.000389,120]
[399593677,1766525711694,-154.374443,0.000389,120]
[399593678,1766525711704,-199.349763,0.000389,120]
[399593679,1766525711714,-246.018246,0.000389,120]
[399593680,1766525711724,-154.374443,0.000389,120]
[399593681,1766525711734,-151.0,0.000389,120]
[399593682,1766525711743,-154.374443,0.000389,120]
[399593683,1766525711754,-151.0,0.000389,120]
[399593684,1766525711763,-151.0,0.000389,120]
[399593685,1766525711777,-151.0,0.000389,120]
[399593686,1766525711787,-191.85291,0.000389,120]
[399593687,1766525711798,-151.0,0.000389,120]
[399593688,1766525711809,-151.0,0.000389,120]
[399593689,1766525711819,-191.85291,0.000389,120]
[399593690,1766525711829,-151.0,0.000389,120]
[399593691,1766525711839,-191.85291,0.000389,120]
[399593692,1766525711851,-201.515021,0.000389,30]
[399593693,1766525711862,-151.0,0.000389,120]
[399593694,1766525711872,-191.85291,0.000389,120]
[399593695,1766525711882,-201.515021,0.000389,30]
[399593696,1766525711893,-151.0,0.000389,120]
[399593697,1766525711903,-201.515021,0.000389,30]
[399593698,1766525711913,-151.0,0.000389,120]
[399593699,1766525711924,-213.019848,0.000389,120]
[399593700,1766525711934,-201.515021,0.000389,30]
[399593701,1766525711943,-151.0,0.000389,120]
[399593702,1766525711953,-151.0,0.000389,120]
[399593703,1766525711964,-151.0,0.000389,120]
[399593704,1766525711973,-151.0,0.000389,120]
[399593705,1766525711983,-239.974982,0.000389,120]
[399593706,1766525711994,-792.59499024,0.000389,2]
[399593707,1766525712004,-175.03195294,0.000389,2]
[399593708,1766525712015,-168.38,0.000389,120]
[399593709,1766525712026,-277.0,0.000389,120]
[399593710,1766525712036,-210.57414499,0.000389,120]
[399593711,1766525712047,-267.74550041,0.000389,2]
[399593712,1766525712057,-184.99945595,0.000389,7]
[399593713,1766525712067,-627.84695604,0.000389,2]
[399593714,1766525712077,-150.0,0.00038903,7]
[399593715,1766525712087,-150.0,0.00038905,7]
[399593716,1766525712097,-209.0,0.0003891,30]
[399593717,1766525712108,-300.0,0.0003897,2]
[399593718,1766525712119,-300.0,0.0003897,2]
[399593719,1766525712129,-158.48329942,0.00038986,7]
[399593720,1766525712140,-160.33063992,0.00038986,7]
[399593721,1766525712151,-155.64705311,0.00038986,7]
[399593722,1766525712162,-164.52110484,0.00038986,7]
[399593723,1766525712172,-151.72084113,0.00038986,7]
[399593724,1766525712182,-156.76422926,0.00038986,7]
[399593725,1766525712192,-152.11986511,0.00038986,7]
[399593726,1766525712202,-157.7543509,0.00038986,7]
[399593727,1766525712213,-150.82546103,0.00038986,7]
[399593728,1766525712223,-162.0002847,0.00038986,7]
[399593729,1766525712233,-152.70737667,0.00038986,7]
[399593730,1766525712243,-152.94375339,0.00038986,7]
[399593731,1766525712253,-151.0,0.00038997,14]
[399593732,1766525712264,-3545.41823418,0.00038999,2]
[399593733,1766525712274,-593.75870283,0.00038999,30]
[399593734,1766525712284,-438.58717324,0.00038999,2]
[399593735,1766525712295,-1969.0196,0.00038999,30]
[399593736,1766525712305,-50000.0,0.00039,39]
[399593737,1766525712316,-50000.0,0.00039,29]
[399593738,1766525712326,-50000.0,0.00039,19]
[399593739,1766525712337,-1060.89397241,0.00039,31]
[399593740,1766525712348,-1119788.55799286,0.00039,2]
[399593743,1766525712905,-393.75864082,0.00039,2]
[399593744,1766525713051,-4089.02672651,0.00016022,2]
[399593748,1766525763748,-1853.56803311,0.00016022,2]
[399593749,1766525763763,-151.0,0.00016629,2]
[399593750,1766525763785,-341.52097155,0.000169,2]
[399593751,1766525763803,-166.75347231,0.000169,2]
[399593752,1766525763821,-269.2101067,0.0001699,2]
[399593753,1766525763831,-250.0,0.00019721,2]
[399593754,1766525763841,-3457.0,0.00022006,2]
[399593755,1766525763851,-166.75347231,0.000224,2]
[399593756,1766525763861,-166.75347231,0.000279,2]
[399593757,1766525763871,-166.75347231,0.000334,2]
[399593758,1766525763882,-166.75347231,0.000389,2]
[399593759,1766525763893,-549.10984818,0.000389,2]
[399593760,1766525763903,-12119323.46700593,0.00039,2]
[399593761,1766525763913,-250.0,0.00039,40]
[399593762,1766525763924,-500.0,0.00039,21]
[399593763,1766525763934,-9000.0,0.00039,2]
[399593764,1766525763944,-10547515.2177442,0.00039,2]
[399593765,1766525763953,-500.0,0.00039,14]
[399593766,1766525763964,-500.0,0.00039,14]
[399593767,1766525763974,-500.0,0.00039,14]
[399593768,1766525763984,-500.0,0.00039,14]
[399593769,1766525763994,-500.0,0.00039,14]
[399593770,1766525764004,-500.0,0.00039,14]
[399593771,1766525764013,-500.0,0.00039,14]
[399593772,1766525764023,-500.0,0.00039,14]
[399593773,1766525764033,-500.0,0.00039,14]
[399593774,1766525764042,-500.0,0.00039,14]
[399593775,1766525764052,-500.0,0.00039,14]
[399593776,1766525764062,-500.0,0.00039,14]
[399593777,1766525764071,-517.1,0.00039,14]
[399593778,1766525764082,-250.0,0.00039,45]
[399593779,1766525764092,-500.0,0.00039,120]
[399593780,1766525764101,-27568.6336933,0.00039,10]
[399593781,1766525764111,-402756.53621197,0.00039,2]
[399593782,1766525764120,-107680.53427227,0.00039,2]
[399593783,1766525764130,-107680.53427227,0.00039,2]
[399593784,1766525764140,-2066.51619369,0.00039,4]
[399593785,1766525764150,-1100.34845473,0.00039,2]
[399593786,1766525764160,-183.17,0.00039,14]
[399593787,1766525764170,-151.0,0.00039,120]
[399593788,1766525764179,-151.0,0.00039,120]
[399593789,1766525764190,-151.0,0.00039,120]
[399593790,1766525764200,-151.0,0.00039,120]
[399593791,1766525764210,-178.89073245,0.00039,2]
[399593792,1766525764220,-151.0,0.00039,120]
[399593793,1766525764232,-168.135238,0.00039,120]
[399593794,1766525764243,-151.0,0.00039,120]
[399593795,1766525764253,-151.0,0.00039,120]
[399593796,1766525764263,-151.0,0.00039,120]
[399593797,1766525764272,-151.0,0.00039,120]
[399593798,1766525764282,-151.0,0.00039,120]
[399593799,1766525764292,-231.30377,0.00039,30]
[399593800,1766525764302,-151.0,0.00039,10]
[399593801,1766525764311,-300.756813,0.00039,10]
[399593802,1766525764321,-153.263817,0.00039,120]
[399593803,1766525764330,-151.0,0.00039,120]
[399593804,1766525764340,-151.0,0.00039,120]
[399593805,1766525764351,-151.0,0.00039,120]
[399593806,1766525764360,-253.441526,0.00039,120]
[399593807,1766525764370,-151.0,0.00039,120]
[399593808,1766525764379,-151.0,0.00039,120]
[399593809,1766525764389,-151.0,0.00039,120]
[399593810,1766525764399,-151.0,0.00039,120]
[399593811,1766525764408,-151.0,0.00039,120]
[399593812,1766525764418,-151.0,0.00039,120]
[399593813,1766525764427,-151.0,0.00039,120]
[399593814,1766525764438,-151.0,0.00039,120]
[399593815,1766525764447,-151.0,0.00039,120]
[399593816,1766525764457,-151.0,0.00039,120]
[399593817,1766525764466,-151.0,0.00039,120]
[399593818,1766525764475,-151.0,0.00039,120]
[399593819,1766525764484,-151.0,0.00039,60]
[399593820,1766525764494,-166.555812,0.00039,60]
[399593821,1766525764503,-151.0,0.00039,120]
[399593822,1766525764513,-151.0,0.00039,120]
[399593823,1766525764523,-205.391814,0.00039,120]
[399593824,1766525764532,-151.0,0.00039,120]
[399593825,1766525764541,-151.0,0.00039,120]
[399593826,1766525764551,-151.0,0.00039,120]
[399593827,1766525764560,-151.0,0.00039,120]
[399593828,1766525764570,-151.0,0.00039,120]
[399593829,1766525764580,-151.0,0.00039,120]
[399593830,1766525764589,-151.0,0.00039,120]
[399593831,1766525764599,-151.0,0.00039,120]
[399593832,1766525764608,-151.0,0.00039,120]
[399593833,1766525764618,-151.0,0.00039,120]
[399593834,1766525764627,-151.0,0.00039,120]
[399593835,1766525764636,-151.0,0.00039,120]
[399593836,1766525764646,-195.306305,0.00039,120]
[399593837,1766525764656,-195.306305,0.00039,120]
[399593838,1766525764665,-195.306305,0.00039,120]
[399593839,1766525764674,-195.306305,0.00039,120]
[399593840,1766525764684,-195.306305,0.00039,120]
[399593841,1766525764693,-195.306311,0.00039,120]
[399593842,1766525764702,-151.0,0.00039,120]
[399593843,1766525764711,-151.0,0.00039,120]
[399593844,1766525764720,-151.0,0.00039,120]
[399593845,1766525764730,-151.0,0.00039,120]
[399593846,1766525764740,-151.0,0.00039,120]
[399593847,1766525764750,-151.0,0.00039,120]
[399593848,1766525764760,-151.0,0.00039,120]
[399593849,1766525764769,-151.0,0.00039,120]
[399593850,1766525764784,-176.821807,0.00039,120]
[399593851,1766525764793,-158.442846,0.00039,120]
[399593852,1766525764803,-158.442846,0.00039,120]
[399593853,1766525764812,-158.442846,0.00039,120]
[399593854,1766525764823,-158.442846,0.00039,120]
[399593855,1766525764833,-158.442846,0.00039,120]
[399593856,1766525764842,-158.442846,0.00039,120]
[399593857,1766525764853,-158.442846,0.00039,120]
[399593858,1766525764863,-158.442846,0.00039,120]
[399593859,1766525764872,-158.442846,0.00039,120]
[399593860,1766525764882,-158.442846,0.00039,120]
[399593861,1766525764891,-158.442846,0.00039,120]
[399593862,1766525764900,-158.442844,0.00039,120]
[399593863,1766525764909,-151.0,0.00039,120]
[399593864,1766525764918,-151.0,0.00039,120]
[399593865,1766525764928,-151.0,0.00039,120]
[399593866,1766525764937,-151.0,0.00039,120]
[399593867,1766525764947,-151.0,0.00039,120]
[399593868,1766525764955,-151.0,0.00039,120]
[399593869,1766525764965,-151.0,0.00039,120]
[399593870,1766525764974,-151.0,0.00039,120]
[399593871,1766525764983,-151.0,0.00039,120]
[399593872,1766525764993,-227.358319,0.00039,120]
[399593873,1766525765003,-151.0,0.00039,120]
[399593874,1766525765012,-230.512448,0.00039,120]
[399593875,1766525765021,-151.0,0.00039,120]
[399593876,1766525765031,-230.512448,0.00039,120]
[399593877,1766525765040,-151.0,0.00039,120]
[399593878,1766525765050,-230.512448,0.00039,120]
[399593879,1766525765059,-151.0,0.00039,120]
[399593880,1766525765069,-230.512448,0.00039,120]
[399593881,1766525765079,-151.0,0.00039,120]
[399593882,1766525765088,-230.512448,0.00039,120]
[399593883,1766525765097,-151.0,0.00039,120]
[399593884,1766525765107,-230.512448,0.00039,120]
[399593885,1766525765117,-151.0,0.00039,120]
[399593886,1766525765127,-151.0,0.00039,120]
[399593887,1766525765136,-230.512448,0.00039,120]
[399593888,1766525765147,-151.0,0.00039,120]
[399593889,1766525765156,-230.512448,0.00039,120]
[399593890,1766525765166,-230.512448,0.00039,120]
[399593891,1766525765175,-151.0,0.00039,120]
[399593892,1766525765185,-151.0,0.00039,120]
[399593893,1766525765194,-230.512448,0.00039,120]
[399593894,1766525765203,-151.0,0.00039,120]
[399593895,1766525765213,-230.512448,0.00039,120]
[399593896,1766525765222,-151.0,0.00039,120]
[399593897,1766525765232,-230.512453,0.00039,120]
[399593898,1766525765241,-151.0,0.00039,120]
[399593899,1766525765251,-151.0,0.00039,120]
[399593900,1766525765260,-178.84402325,0.00039,120]
[399593901,1766525765270,-207.398135,0.00039,120]
[399593902,1766525765279,-207.398135,0.00039,120]
[399593903,1766525765288,-207.398135,0.00039,120]
[399593904,1766525765299,-207.398135,0.00039,120]
[399593905,1766525765308,-207.398135,0.00039,120]
[399593906,1766525765318,-207.398135,0.00039,120]
[399593907,1766525765327,-151.0,0.00039,120]
[399593908,1766525765336,-151.0,0.00039,120]
[399593909,1766525765346,-207.398135,0.00039,120]
[399593910,1766525765355,-151.0,0.00039,120]
[399593911,1766525765365,-207.398135,0.00039,120]
[399593912,1766525765374,-207.398135,0.00039,120]
[399593913,1766525765384,-151.0,0.00039,120]
[399593914,1766525765393,-151.0,0.00039,120]
[399593915,1766525765404,-151.0,0.00039,120]
[399593916,1766525765414,-207.398135,0.00039,120]
[399593917,1766525765423,-207.398135,0.00039,120]
[399593918,1766525765433,-207.398142,0.00039,120]
[399593919,1766525765442,-151.0,0.00039,120]
[399593920,1766525765451,-151.0,0.00039,120]
[399593921,1766525765460,-151.0,0.00039,120]
[399593922,1766525765470,-151.0,0.00039,120]
[399593923,1766525765479,-151.0,0.00039,120]
[399593924,1766525765488,-151.0,0.00039,120]
[399593925,1766525765497,-151.0,0.00039,120]
[399593926,1766525765506,-151.0,0.00039,120]
[399593927,1766525765516,-151.0,0.00039,120]
[399593928,1766525765526,-163.422143,0.00039,120]
[399593929,1766525765536,-163.422143,0.00039,120]
[399593930,1766525765546,-163.422143,0.00039,120]
[399593931,1766525765556,-151.0,0.00039,120]
[399593932,1766525765565,-151.094231,0.00039,120]
[399593933,1766525765574,-163.422143,0.00039,120]
[399593934,1766525765584,-163.422143,0.00039,120]
[399593935,1766525765593,-163.422143,0.00039,120]
[399593936,1766525765603,-151.0,0.00039,120]
[399593937,1766525765612,-151.0,0.00039,120]
[399593938,1766525765622,-151.0,0.00039,120]
[399593939,1766525765631,-151.0,0.00039,120]
[399593940,1766525765640,-163.422143,0.00039,120]
[399593941,1766525765649,-151.0,0.00039,120]
[399593942,1766525765659,-163.422143,0.00039,120]
[399593943,1766525765668,-151.0,0.00039,120]
[399593944,1766525765677,-163.422143,0.00039,120]
[399593945,1766525765687,-151.0,0.00039,120]
[399593946,1766525765696,-163.422143,0.00039,120]
[399593947,1766525765705,-151.0,0.00039,120]
[399593948,1766525765714,-151.0,0.00039,120]
[399593949,1766525765723,-163.422143,0.00039,120]
[399593950,1766525765732,-163.422148,0.00039,120]
[399593951,1766525765742,-151.0,0.00039,120]
[399593952,1766525765751,-151.0,0.00039,120]
[399593953,1766525765760,-151.0,0.00039,120]
[399593954,1766525765770,-570.09109,0.00039,120]
[399593955,1766525765784,-570.09109,0.00039,120]
[399593956,1766525765794,-570.09109,0.00039,120]
[399593957,1766525765803,-570.09109,0.00039,120]
[399593958,1766525765813,-570.09109,0.00039,120]
[399593959,1766525765824,-570.09109,0.00039,120]
[399593960,1766525765833,-570.09109,0.00039,120]
[399593961,1766525765842,-570.09109,0.00039,120]
[399593962,1766525765854,-570.09109,0.00039,120]
[399593963,1766525765863,-570.09109,0.00039,120]
[399593964,1766525765873,-570.09109,0.00039,120]
[399593965,1766525765882,-570.091085,0.00039,120]
[399593966,1766525765891,-151.0,0.00039,120]
[399593967,1766525765900,-151.0,0.00039,120]
[399593968,1766525765910,-151.0,0.00039,120]
[399593969,1766525765919,-151.0,0.00039,120]
[399593970,1766525765928,-151.0,0.00039,120]
[399593971,1766525765938,-151.0,0.00039,120]
[399593972,1766525765947,-151.0,0.00039,60]
[399593973,1766525765956,-293.656299,0.00039,120]
[399593974,1766525765966,-151.0,0.00039,60]
[399593975,1766525765975,-151.0,0.00039,60]
[399593976,1766525765984,-151.0,0.00039,60]
[399593977,1766525765993,-151.0,0.00039,60]
[399593978,1766525766003,-180.682241,0.00039,60]
[399593979,1766525766012,-151.0,0.00039,60]
[399593980,1766525766021,-151.0,0.00039,60]
[399593981,1766525766030,-151.0,0.00039,60]
[399593982,1766525766040,-151.0,0.00039,120]
[399593983,1766525766050,-151.0,0.00039,120]
[399593984,1766525766059,-151.0,0.00039,120]
[399593985,1766525766069,-151.0,0.00039,120]
[399593986,1766525766078,-151.0,0.00039,120]
[399593987,1766525766088,-151.0,0.00039,120]
[399593988,1766525766097,-151.0,0.00039,120]
[399593989,1766525766106,-151.0,0.00039,120]
[399593990,1766525766116,-151.0,0.00039,120]
[399593991,1766525766125,-151.0,0.00039,120]
[399593992,1766525766135,-151.0,0.00039,120]
[399593993,1766525766145,-151.0,0.00039,120]
[399593994,1766525766154,-151.0,0.00039,120]
[399593995,1766525766163,-151.0,0.00039,120]
[399593996,1766525766174,-151.0,0.00039,120]
[399593997,1766525766183,-182.254771,0.00039,120]
[399593998,1766525766193,-151.0,0.00039,120]
[399593999,1766525766203,-217.519628,0.00039,120]
[399594000,1766525766212,-151.0,0.00039,120]
[399594001,1766525766222,-151.0,0.00039,120]
[399594002,1766525766231,-151.0,0.00039,120]
[399594003,1766525766241,-151.0,0.00039,120]
[399594004,1766525766250,-151.0,0.00039,120]
[399594005,1766525766260,-151.0,0.00039,120]
[399594006,1766525766270,-151.0,0.00039,120]
[399594007,1766525766280,-283.124369,0.00039,120]
[399594008,1766525766290,-162.036642,0.00039,120]
[399594009,1766525766299,-151.0,0.00039,120]
[399594010,1766525766309,-151.0,0.00039,120]
[399594011,1766525766319,-151.0,0.00039,120]
[399594012,1766525766328,-151.0,0.00039,120]
[399594013,1766525766338,-151.0,0.00039,120]
[399594014,1766525766347,-151.0,0.00039,120]
[399594015,1766525766357,-151.0,0.00039,120]
[399594016,1766525766367,-301.999946,0.00039,120]
[399594017,1766525766377,-151.0,0.00039,120]
[399594018,1766525766387,-151.0,0.00039,120]
[399594019,1766525766397,-151.0,0.00039,120]
[399594020,1766525766406,-151.0,0.00039,120]
[399594021,1766525766416,-151.0,0.00039,120]
[399594022,1766525766426,-151.0,0.00039,120]
[399594023,1766525766435,-151.0,0.00039,120]
[399594024,1766525766445,-154.374443,0.00039,120]
[399594025,1766525766454,-151.0,0.00039,120]
[399594026,1766525766464,-154.374443,0.00039,120]